[Event "*** SCC Grand Prix: Titled Tuesday Blitz"]
[Site "Chess.com"]
[Date "2020.08.11"]
[Round "8"]
[White "FMalexhdez"]
[Black "c_r_e_e_p_e_r"]
[Result "1-0"]
[WhiteElo "2201"]
[BlackElo "2318"]
[TimeControl "180+1"]
[EndTime "11:36:22 PDT"]
[Termination "FMalexhdez won by checkmate"]

1. e4 {[%clk 0:02:53.3]} 1... c5 {[%clk 0:03:00.3]} 2. Nf3 {[%clk 0:02:52.3]}
2... e6 {[%clk 0:03:00.9]} 3. d4 {[%clk 0:02:52.5]} 3... cxd4 {[%clk 0:03:01.8]}
4. Nxd4 {[%clk 0:02:52.6]} 4... a6 {[%clk 0:03:02.4]} 5. c4 {[%clk 0:02:51.6]}
5... Qc7 {[%clk 0:03:02.8]} 6. Nc3 {[%clk 0:02:51.8]} 6... Nf6 {[%clk
0:03:02.5]} 7. Bd3 {[%clk 0:02:46.5]} 7... b6 {[%clk 0:03:02.5]} 8. Nc2 {[%clk
0:02:44.2]} 8... Bb7 {[%clk 0:03:02.5]} 9. O-O {[%clk 0:02:44]} 9... g6 {[%clk
0:03:02.7]} 10. Ne3 {[%clk 0:02:29.9]} 10... Bg7 {[%clk 0:03:02.7]} 11. b3
{[%clk 0:02:28.9]} 11... Nxe4 {[%clk 0:02:57.3]} 12. Nxe4 {[%clk 0:02:22.4]}
12... Bxa1 {[%clk 0:02:55.4]} 13. Ba3 {[%clk 0:02:21.5]} 13... Be5 {[%clk
0:02:54.1]} 14. Ng4 {[%clk 0:02:03.5]} 14... Bxe4 {[%clk 0:02:43.2]} 15. Bxe4
{[%clk 0:02:01.7]} 15... Nc6 {[%clk 0:02:43.4]} 16. f4 {[%clk 0:01:47.2]} 16...
Bd4+ {[%clk 0:02:35.4]} 17. Kh1 {[%clk 0:01:47.2]} 17... O-O-O {[%clk
0:02:23.6]} 18. Nh6 {[%clk 0:01:18.6]} 18... d5 {[%clk 0:02:13.7]} 19. cxd5
{[%clk 0:01:16.3]} 19... exd5 {[%clk 0:02:14.6]} 20. Bd3 {[%clk 0:01:13]} 20...
Kb7 {[%clk 0:02:12.3]} 21. Qe2 {[%clk 0:01:08.7]} 21... b5 {[%clk 0:02:01.6]}
22. Rc1 {[%clk 0:01:02.1]} 22... Rhe8 {[%clk 0:02:01.2]} 23. Qf1 {[%clk
0:00:39.6]} 23... Be3 {[%clk 0:01:57.1]} 24. Rc2 {[%clk 0:00:35.2]} 24... Qxf4
{[%clk 0:01:56.1]} 25. Nxf7 {[%clk 0:00:23.1]} 25... Qxf1+ {[%clk 0:01:38.9]}
26. Bxf1 {[%clk 0:00:22.9]} 26... Rd7 {[%clk 0:01:33.5]} 27. Nd6+ {[%clk
0:00:20.7]} 27... Rxd6 {[%clk 0:01:26.8]} 28. Bxd6 {[%clk 0:00:21.2]} 28... Nd4
{[%clk 0:01:23.8]} 29. Rc7+ {[%clk 0:00:20.5]} 29... Kb6 {[%clk 0:01:20.5]} 30.
Rxh7 {[%clk 0:00:18.3]} 30... Bf2 {[%clk 0:01:04.9]} 31. g3 {[%clk 0:00:17]}
31... Nf5 {[%clk 0:00:59.1]} 32. Bc7+ {[%clk 0:00:16.1]} 32... Kc5 {[%clk
0:00:57.3]} 33. Kg2 {[%clk 0:00:15.1]} 33... Bd4 {[%clk 0:00:57.2]} 34. Bd3
{[%clk 0:00:11.8]} 34... Ne3+ {[%clk 0:00:42.2]} 35. Kh3 {[%clk 0:00:12.2]}
35... g5 {[%clk 0:00:37.8]} 36. a3 {[%clk 0:00:10.9]} 36... g4+ {[%clk
0:00:32.9]} 37. Kh4 {[%clk 0:00:11.1]} 37... Bf6+ {[%clk 0:00:30.7]} 38. Kh5
{[%clk 0:00:11.2]} 38... Kd4 {[%clk 0:00:31.2]} 39. Bg6 {[%clk 0:00:09.8]} 39...
Rg8 {[%clk 0:00:22.4]} 40. Bb6+ {[%clk 0:00:08.3]} 40... Kc3 {[%clk 0:00:19.4]}
41. Bxe3 {[%clk 0:00:09.2]} 41... Kxb3 {[%clk 0:00:19.8]} 42. Bc1 {[%clk
0:00:08.2]} 42... Rd8 {[%clk 0:00:16]} 43. Bf5 {[%clk 0:00:07.3]} 43... d4
{[%clk 0:00:14.7]} 44. Rd7 {[%clk 0:00:05.2]} 44... Rh8+ {[%clk 0:00:09]} 45.
Kxg4 {[%clk 0:00:04.3]} 45... Rxh2 {[%clk 0:00:06.9]} 46. Be6+ {[%clk
0:00:02.2]} 46... Kc2 {[%clk 0:00:06.6]} 47. Bf4 {[%clk 0:00:02.3]} 47... d3
{[%clk 0:00:06.6]} 48. Kf5 {[%clk 0:00:02.8]} 48... Bc3 {[%clk 0:00:05.5]} 49.
g4 {[%clk 0:00:03.3]} 49... d2 {[%clk 0:00:05.2]} 50. Bxd2 {[%clk 0:00:03.6]}
50... Bxd2 {[%clk 0:00:03.8]} 51. g5 {[%clk 0:00:04.5]} 51... Rg2 {[%clk
0:00:03.1]} 52. g6 {[%clk 0:00:04.4]} 52... Rf2+ {[%clk 0:00:03.1]} 53. Ke5
{[%clk 0:00:03.5]} 53... Re2+ {[%clk 0:00:03.2]} 54. Kd6 {[%clk 0:00:02.9]}
54... Rg2 {[%clk 0:00:03.4]} 55. Bf7 {[%clk 0:00:02.9]} 55... Kc1 {[%clk
0:00:02.8]} 56. Kc5 {[%clk 0:00:02.8]} 56... Be3+ {[%clk 0:00:02.1]} 57. Kc6
{[%clk 0:00:02.5]} 57... Rc2+ {[%clk 0:00:02.3]} 58. Kb7 {[%clk 0:00:03.4]}
58... Rg2 {[%clk 0:00:02.6]} 59. Kxa6 {[%clk 0:00:03.9]} 59... Rg3 {[%clk
0:00:02.6]} 60. Kxb5 {[%clk 0:00:04.8]} 60... Bd2 {[%clk 0:00:02.5]} 61. Kc6
{[%clk 0:00:05]} 61... Rxa3 {[%clk 0:00:02.7]} 62. Kb7 {[%clk 0:00:05.4]} 62...
Rb3+ {[%clk 0:00:02.9]} 63. Kc8 {[%clk 0:00:06.3]} 63... Rg3 {[%clk 0:00:03.1]}
64. Rc7+ {[%clk 0:00:07.2]} 64... Kd1 {[%clk 0:00:02.8]} 65. Rd7 {[%clk
0:00:07.5]} 65... Ke1 {[%clk 0:00:03.1]} 66. Re7+ {[%clk 0:00:07.3]} 66... Kf1
{[%clk 0:00:02.9]} 67. Rd7 {[%clk 0:00:07.4]} 67... Bg5 {[%clk 0:00:02.6]} 68.
Rd5 {[%clk 0:00:06.8]} 68... Bf6 {[%clk 0:00:02.9]} 69. Rf5+ {[%clk 0:00:06.7]}
69... Kg2 {[%clk 0:00:02.3]} 70. Rxf6 {[%clk 0:00:07.6]} 70... Kh3 {[%clk
0:00:02.6]} 71. Kd8 {[%clk 0:00:07.7]} 71... Rc3 {[%clk 0:00:03.2]} 72. Ke7
{[%clk 0:00:08.4]} 72... Rd3 {[%clk 0:00:03.7]} 73. Kf8 {[%clk 0:00:08.6]} 73...
Re3 {[%clk 0:00:04.6]} 74. g7 {[%clk 0:00:08.7]} 74... Rg3 {[%clk 0:00:05.5]}
75. g8=Q {[%clk 0:00:07.8]} 75... Rxg8+ {[%clk 0:00:06.4]} 76. Bxg8 {[%clk
0:00:07.6]} 76... Kh2 {[%clk 0:00:07.3]} 77. Kg7 {[%clk 0:00:07.7]} 77... Kh1
{[%clk 0:00:08.2]} 78. Kg6 {[%clk 0:00:08.1]} 78... Kh2 {[%clk 0:00:09.1]} 79.
Rf4 {[%clk 0:00:08]} 79... Kh3 {[%clk 0:00:10]} 80. Kg5 {[%clk 0:00:07.6]} 80...
Kh2 {[%clk 0:00:10.9]} 81. Bd5 {[%clk 0:00:06.7]} 81... Kh3 {[%clk 0:00:10.3]}
82. Rf3+ {[%clk 0:00:06.4]} 82... Kh2 {[%clk 0:00:11.2]} 83. Kg4 {[%clk
0:00:05.9]} 83... Kh1 {[%clk 0:00:11]} 84. Rg3+ {[%clk 0:00:04.6]} 84... Kh2
{[%clk 0:00:11.9]} 85. Rg2+ {[%clk 0:00:04.5]} 85... Kh1 {[%clk 0:00:12.1]} 86.
Rf2+ {[%clk 0:00:04.1]} 86... Kg1 {[%clk 0:00:12.2]} 87. Rf3 {[%clk 0:00:03.5]}
87... Kg2 {[%clk 0:00:12.2]} 88. Kf4 {[%clk 0:00:03.7]} 88... Kh2 {[%clk
0:00:11.8]} 89. Kg4 {[%clk 0:00:03.7]} 89... Kg2 {[%clk 0:00:12.2]} 90. Be6
{[%clk 0:00:03.4]} 90... Kh2 {[%clk 0:00:12.2]} 91. Rg3 {[%clk 0:00:02.9]} 91...
Kh1 {[%clk 0:00:11.9]} 92. Kf3 {[%clk 0:00:03.4]} 92... Kh2 {[%clk 0:00:12.4]}
93. Kf2 {[%clk 0:00:03.7]} 93... Kh1 {[%clk 0:00:12.7]} 94. Rh3# {[%clk
0:00:04.2]} 1-0

[Event "*** SCC Grand Prix: Titled Tuesday Blitz"]
[Site "Chess.com"]
[Date "2020.08.11"]
[Round "8"]
[White "ENEASZ"]
[Black "Kavyev_Ruslan"]
[Result "1-0"]
[WhiteElo "2582"]
[BlackElo "2450"]
[TimeControl "180+1"]
[EndTime "11:36:47 PDT"]
[Termination "ENEASZ won by resignation"]

1. e4 {[%clk 0:03:00.9]} 1... c5 {[%clk 0:02:54.9]} 2. c3 {[%clk 0:03:00.9]}
2... d5 {[%clk 0:02:52]} 3. exd5 {[%clk 0:02:59.9]} 3... Qxd5 {[%clk 0:02:52.9]}
4. d4 {[%clk 0:03:00.7]} 4... Nf6 {[%clk 0:02:53]} 5. Nf3 {[%clk 0:03:00.5]}
5... Bg4 {[%clk 0:02:53.6]} 6. Be2 {[%clk 0:03:00.4]} 6... e6 {[%clk 0:02:53.6]}
7. O-O {[%clk 0:03:00.4]} 7... Nc6 {[%clk 0:02:53.6]} 8. Be3 {[%clk 0:03:00.2]}
8... cxd4 {[%clk 0:02:54]} 9. cxd4 {[%clk 0:03:01.1]} 9... Be7 {[%clk 0:02:54]}
10. h3 {[%clk 0:03:01.6]} 10... Bh5 {[%clk 0:02:53.8]} 11. Nc3 {[%clk
0:03:02.2]} 11... Qd6 {[%clk 0:02:54.4]} 12. Qb3 {[%clk 0:03:02.4]} 12... O-O
{[%clk 0:02:54.2]} 13. Rfd1 {[%clk 0:03:02.2]} 13... Rfd8 {[%clk 0:02:54.5]} 14.
Rac1 {[%clk 0:02:58.6]} 14... Qb4 {[%clk 0:02:46.1]} 15. Qxb4 {[%clk 0:02:45.6]}
15... Nxb4 {[%clk 0:02:47]} 16. g4 {[%clk 0:02:46.2]} 16... Bg6 {[%clk
0:02:44.5]} 17. Ne5 {[%clk 0:02:46.8]} 17... Rac8 {[%clk 0:02:33.7]} 18. Bf3
{[%clk 0:02:38.1]} 18... Nbd5 {[%clk 0:02:31.7]} 19. Nxd5 {[%clk 0:02:31]} 19...
Nxd5 {[%clk 0:02:31]} 20. Rxc8 {[%clk 0:02:30.9]} 20... Rxc8 {[%clk 0:02:30.5]}
21. Rc1 {[%clk 0:02:31.5]} 21... Rxc1+ {[%clk 0:02:24.6]} 22. Bxc1 {[%clk
0:02:32.4]} 22... Bd8 {[%clk 0:01:50.4]} 23. Be3 {[%clk 0:02:27.7]} 23... Bb6
{[%clk 0:01:50]} 24. Kf1 {[%clk 0:02:26.8]} 24... Kf8 {[%clk 0:01:49.8]} 25. Ke2
{[%clk 0:02:26.3]} 25... Ke7 {[%clk 0:01:50.1]} 26. a3 {[%clk 0:02:24.5]} 26...
Bc2 {[%clk 0:01:40.9]} 27. Kd2 {[%clk 0:02:22.4]} 27... Ba4 {[%clk 0:01:40.6]}
28. Be4 {[%clk 0:02:20.5]} 28... h6 {[%clk 0:01:40.5]} 29. h4 {[%clk 0:02:19.1]}
29... Be8 {[%clk 0:01:30.6]} 30. h5 {[%clk 0:02:17.9]} 30... Bc7 {[%clk
0:01:27]} 31. Nd3 {[%clk 0:02:15.1]} 31... b6 {[%clk 0:01:26.5]} 32. Bxd5 {[%clk
0:02:02.3]} 32... exd5 {[%clk 0:01:27.4]} 33. Bf4 {[%clk 0:02:03.2]} 33... Bd8
{[%clk 0:01:09.6]} 34. Be5 {[%clk 0:02:03.1]} 34... f6 {[%clk 0:01:09.6]} 35.
Bb8 {[%clk 0:02:03.4]} 35... a5 {[%clk 0:01:01.5]} 36. Nf4 {[%clk 0:02:03.1]}
36... Bf7 {[%clk 0:00:56.2]} 37. f3 {[%clk 0:02:03.3]} 37... Kd7 {[%clk
0:00:56.3]} 38. Ne2 {[%clk 0:01:59.4]} 38... Kc6 {[%clk 0:00:55.5]} 39. Ng3
{[%clk 0:01:58.6]} 39... Be6 {[%clk 0:00:53.8]} 40. Bf4 {[%clk 0:01:57.6]} 40...
Be7 {[%clk 0:00:53.3]} 41. Kc3 {[%clk 0:01:57.2]} 41... Kb5 {[%clk 0:00:52]} 42.
Bb8 {[%clk 0:01:55.6]} 42... Ka4 {[%clk 0:00:50.7]} 43. Ne2 {[%clk 0:01:54]}
43... b5 {[%clk 0:00:49.8]} 44. Nf4 {[%clk 0:01:51.7]} 44... b4+ {[%clk
0:00:49.5]} 45. Kc2 {[%clk 0:01:49.6]} 45... bxa3 {[%clk 0:00:46.8]} 46. bxa3
{[%clk 0:01:38.4]} 46... Bf7 {[%clk 0:00:46.7]} 47. Ba7 {[%clk 0:01:31.8]} 47...
Bxa3 {[%clk 0:00:43.5]} 48. Nd3 {[%clk 0:01:31.4]} 48... Kb5 {[%clk 0:00:39.8]}
49. Kc3 {[%clk 0:01:26.7]} 49... Be7 {[%clk 0:00:31.5]} 50. Bc5 {[%clk
0:01:23.6]} 50... Bd8 {[%clk 0:00:31.8]} 51. Bf8 {[%clk 0:01:23.1]} 51... g6
{[%clk 0:00:30.7]} 52. hxg6 {[%clk 0:01:17.7]} 52... Bxg6 {[%clk 0:00:31.6]} 53.
Nf4 {[%clk 0:01:18.5]} 53... Bf7 {[%clk 0:00:31.3]} 54. Bxh6 {[%clk 0:01:19]}
54... a4 {[%clk 0:00:31.8]} 55. Bf8 {[%clk 0:01:18.3]} 55... Ba5+ {[%clk
0:00:32.2]} 56. Kb2 {[%clk 0:01:11.1]} 56... Kc4 {[%clk 0:00:32.1]} 57. Be7
{[%clk 0:01:06.4]} 57... Bc3+ {[%clk 0:00:31.5]} 58. Ka3 {[%clk 0:01:05.1]}
58... Bxd4 {[%clk 0:00:30.5]} 59. Kxa4 {[%clk 0:01:05]} 59... Be5 {[%clk
0:00:30.7]} 60. Nh5 {[%clk 0:01:02.4]} 60... Bxh5 {[%clk 0:00:28.9]} 61. gxh5
{[%clk 0:01:03.3]} 61... f5 {[%clk 0:00:29.2]} 62. h6 {[%clk 0:01:02.1]} 62...
d4 {[%clk 0:00:29.6]} 63. Bb4 {[%clk 0:00:30.8]} 63... d3 {[%clk 0:00:29.8]} 64.
Bd2 {[%clk 0:00:29]} 64... Bf6 {[%clk 0:00:23.5]} 65. h7 {[%clk 0:00:29.1]}
65... Be5 {[%clk 0:00:23.3]} 66. Ka3 {[%clk 0:00:23.4]} 66... Bf6 {[%clk
0:00:21.1]} 67. Ka4 {[%clk 0:00:23.6]} 67... Bg7 {[%clk 0:00:15.2]} 68. Ka3
{[%clk 0:00:23.5]} 68... Bf6 {[%clk 0:00:10.5]} 69. Ka2 {[%clk 0:00:23.7]} 69...
Bg7 {[%clk 0:00:10.1]} 70. Kb1 {[%clk 0:00:23.9]} 70... Kb3 {[%clk 0:00:08.5]}
71. Kc1 {[%clk 0:00:23.9]} 71... Bf6 {[%clk 0:00:09.1]} 72. Kd1 {[%clk
0:00:24.1]} 72... Kb2 {[%clk 0:00:08.9]} 73. Bg5 {[%clk 0:00:24.3]} 73... Bc3
{[%clk 0:00:06.3]} 74. Bc1+ {[%clk 0:00:18.8]} 74... Kb3 {[%clk 0:00:06.4]} 75.
Bh6 {[%clk 0:00:19.7]} 75... Kc4 {[%clk 0:00:06]} 76. Bd2 {[%clk 0:00:19.4]}
76... Bg7 {[%clk 0:00:05.8]} 77. Ba5 {[%clk 0:00:17.7]} 77... Kd5 {[%clk
0:00:04.1]} 78. Kd2 {[%clk 0:00:17.5]} 78... Kc4 {[%clk 0:00:04.7]} 79. Bb6
{[%clk 0:00:11.8]} 79... Be5 {[%clk 0:00:04.8]} 80. Be3 {[%clk 0:00:10.5]} 80...
f4 {[%clk 0:00:04.2]} 81. Bb6 {[%clk 0:00:08.3]} 81... Bc3+ {[%clk 0:00:04.6]}
82. Kd1 {[%clk 0:00:08.6]} 82... Bg7 {[%clk 0:00:04.3]} 83. Bc7 {[%clk
0:00:08.8]} 83... Kd4 {[%clk 0:00:04.8]} 84. Bxf4 {[%clk 0:00:08.6]} 84... Bf6
{[%clk 0:00:05.4]} 85. Kd2 {[%clk 0:00:08.3]} 85... Bg7 {[%clk 0:00:05.9]} 86.
Bg3 {[%clk 0:00:07.3]} 86... Bf6 {[%clk 0:00:06.2]} 87. Bf2+ {[%clk 0:00:06.9]}
87... Ke5 {[%clk 0:00:05.7]} 88. Kxd3 {[%clk 0:00:06.3]} 88... Kf4 {[%clk
0:00:06.6]} 89. Ke2 {[%clk 0:00:06.6]} 89... Bg7 {[%clk 0:00:07.2]} 90. Be3+
{[%clk 0:00:06.6]} 90... Kf5 {[%clk 0:00:07.4]} 91. Kd3 {[%clk 0:00:05.7]} 91...
Kg6 {[%clk 0:00:06.5]} 92. Bd4 {[%clk 0:00:06]} 92... Bxd4 {[%clk 0:00:06.9]}
93. Kxd4 {[%clk 0:00:06.9]} 93... Kxh7 {[%clk 0:00:07.8]} 94. Ke5 {[%clk
0:00:07.1]} 94... Kg7 {[%clk 0:00:08.4]} 95. Kf5 {[%clk 0:00:06.6]} 95... Kf7
{[%clk 0:00:09]} 96. f4 {[%clk 0:00:06.9]} 96... Kf8 {[%clk 0:00:09.7]} 97. Kf6
{[%clk 0:00:06.9]} 97... Ke8 {[%clk 0:00:10.1]} 98. Kg7 {[%clk 0:00:06.8]} 98...
Ke7 {[%clk 0:00:10.7]} 99. f5 {[%clk 0:00:07.7]} 1-0

[Event "*** SCC Grand Prix: Titled Tuesday Blitz"]
[Site "Chess.com"]
[Date "2020.08.11"]
[Round "8"]
[White "Arseniy_Nesterov"]
[Black "Koksik_13"]
[Result "0-1"]
[WhiteElo "2740"]
[BlackElo "2637"]
[TimeControl "180+1"]
[EndTime "11:36:50 PDT"]
[Termination "Koksik_13 won on time"]

1. d4 {[%clk 0:03:00.9]} 1... e6 {[%clk 0:02:59.5]} 2. c4 {[%clk 0:02:59.9]}
2... d5 {[%clk 0:02:59.8]} 3. Nf3 {[%clk 0:02:59.2]} 3... a6 {[%clk 0:03:00]} 4.
Bg5 {[%clk 0:02:58.9]} 4... Nf6 {[%clk 0:03:00.1]} 5. Nbd2 {[%clk 0:02:55.9]}
5... Be7 {[%clk 0:02:57.8]} 6. g3 {[%clk 0:02:54.4]} 6... h6 {[%clk 0:02:53.3]}
7. Bxf6 {[%clk 0:02:53.6]} 7... Bxf6 {[%clk 0:02:53.2]} 8. Bg2 {[%clk
0:02:53.1]} 8... c5 {[%clk 0:02:53.3]} 9. dxc5 {[%clk 0:02:48.1]} 9... Bxb2
{[%clk 0:02:49.5]} 10. Rb1 {[%clk 0:02:47.2]} 10... Bf6 {[%clk 0:02:49.1]} 11.
O-O {[%clk 0:02:38.9]} 11... O-O {[%clk 0:02:49.1]} 12. cxd5 {[%clk 0:02:35.2]}
12... exd5 {[%clk 0:02:48.9]} 13. Nb3 {[%clk 0:02:31.6]} 13... Nc6 {[%clk
0:02:47.5]} 14. Nfd4 {[%clk 0:02:19.2]} 14... Qe7 {[%clk 0:02:44.9]} 15. e3
{[%clk 0:02:15.7]} 15... Rd8 {[%clk 0:02:42]} 16. Nxc6 {[%clk 0:02:09.4]} 16...
bxc6 {[%clk 0:02:41.9]} 17. Nd4 {[%clk 0:02:09]} 17... Bd7 {[%clk 0:02:29.8]}
18. Qc2 {[%clk 0:02:06.2]} 18... Rab8 {[%clk 0:02:21]} 19. Rb3 {[%clk
0:02:00.9]} 19... Bxd4 {[%clk 0:02:16.8]} 20. exd4 {[%clk 0:02:00.5]} 20... Qf6
{[%clk 0:02:17.4]} 21. Qd3 {[%clk 0:01:53.7]} 21... Rxb3 {[%clk 0:02:11.2]} 22.
axb3 {[%clk 0:01:52.4]} 22... Rb8 {[%clk 0:02:11.8]} 23. Ra1 {[%clk 0:01:49]}
23... Bf5 {[%clk 0:02:10.2]} 24. Qc3 {[%clk 0:01:48.5]} 24... Ra8 {[%clk
0:01:51.2]} 25. b4 {[%clk 0:01:37.9]} 25... g5 {[%clk 0:01:40.4]} 26. Bf1 {[%clk
0:01:22.6]} 26... Bc8 {[%clk 0:01:34.9]} 27. b5 {[%clk 0:01:19.9]} 27... cxb5
{[%clk 0:01:28.5]} 28. Bxb5 {[%clk 0:01:19.6]} 28... Kg7 {[%clk 0:01:24.9]} 29.
Bf1 {[%clk 0:01:17.2]} 29... h5 {[%clk 0:01:17.1]} 30. Bg2 {[%clk 0:01:15.3]}
30... Be6 {[%clk 0:01:15]} 31. c6 {[%clk 0:01:06.3]} 31... h4 {[%clk 0:01:13.8]}
32. c7 {[%clk 0:01:00.8]} 32... h3 {[%clk 0:00:36.1]} 33. Bf1 {[%clk 0:00:59.8]}
33... Bg4 {[%clk 0:00:25.3]} 34. f3 {[%clk 0:00:37.6]} 34... Bd7 {[%clk
0:00:13.6]} 35. Rb1 {[%clk 0:00:25.4]} 35... Rc8 {[%clk 0:00:08.3]} 36. Rb8
{[%clk 0:00:25.2]} 36... a5 {[%clk 0:00:02.6]} 37. Rxc8 {[%clk 0:00:17]} 37...
Bxc8 {[%clk 0:00:03.5]} 38. Bb5 {[%clk 0:00:16.2]} 38... Qb6 {[%clk 0:00:02.3]}
39. Ba4 {[%clk 0:00:11.4]} 39... Qb1+ {[%clk 0:00:02.3]} 40. Kf2 {[%clk
0:00:11.5]} 40... Qa2+ {[%clk 0:00:02.7]} 41. Qc2 {[%clk 0:00:12.1]} 41... Qa1
{[%clk 0:00:02]} 42. Qd1 {[%clk 0:00:09.2]} 42... Qb2+ {[%clk 0:00:02.2]} 43.
Qc2 {[%clk 0:00:08.2]} 43... Qa1 {[%clk 0:00:02.3]} 44. Ke3 {[%clk 0:00:07.5]}
44... Qg1+ {[%clk 0:00:02.1]} 45. Qf2 {[%clk 0:00:06.8]} 45... Qc1+ {[%clk
0:00:02.8]} 46. Qd2 {[%clk 0:00:07.4]} 46... Qxc7 {[%clk 0:00:03.7]} 47. Qc2
{[%clk 0:00:05.5]} 47... Qe7+ {[%clk 0:00:04.1]} 48. Kf2 {[%clk 0:00:05.4]}
48... Qb4 {[%clk 0:00:03.8]} 49. Qd1 {[%clk 0:00:03.9]} 49... Qb2+ {[%clk
0:00:03.8]} 50. Qc2 {[%clk 0:00:02.9]} 50... Qxd4+ {[%clk 0:00:03.9]} 51. Ke2
{[%clk 0:00:03.4]} 51... Qc4+ {[%clk 0:00:03.7]} 52. Qxc4 {[%clk 0:00:03.3]}
52... dxc4 {[%clk 0:00:04.6]} 53. Kd2 {[%clk 0:00:03.9]} 53... Be6 {[%clk
0:00:05.1]} 54. Kc3 {[%clk 0:00:03.5]} 54... Kf6 {[%clk 0:00:05.7]} 55. Kd4
{[%clk 0:00:03]} 55... Ke7 {[%clk 0:00:06]} 56. Bb5 {[%clk 0:00:02.2]} 56... Kd6
{[%clk 0:00:06.5]} 57. Ba4 {[%clk 0:00:02.7]} 57... f5 {[%clk 0:00:06.6]} 58.
Bc2 {[%clk 0:00:02.4]} 58... f4 {[%clk 0:00:06.4]} 59. Ba4 {[%clk 0:00:03.3]}
59... Bd5 {[%clk 0:00:07.3]} 60. gxf4 {[%clk 0:00:03.3]} 60... gxf4 {[%clk
0:00:08.2]} 61. Bd1 {[%clk 0:00:03.5]} 61... Ke6 {[%clk 0:00:08.4]} 62. Be2
{[%clk 0:00:03.9]} 62... Kd6 {[%clk 0:00:08.5]} 63. Bf1 {[%clk 0:00:04.4]} 63...
a4 {[%clk 0:00:07.8]} 64. Bxh3 {[%clk 0:00:04.3]} 64... a3 {[%clk 0:00:07.3]}
65. Kc3 {[%clk 0:00:04.8]} 65... Bxf3 {[%clk 0:00:07.6]} 66. Bf5 {[%clk
0:00:05.2]} 66... Bd5 {[%clk 0:00:07.3]} 67. Bg4 {[%clk 0:00:05.1]} 67... f3
{[%clk 0:00:06.9]} 68. h4 {[%clk 0:00:05.5]} 68... f2 {[%clk 0:00:07.8]} 69. Be2
{[%clk 0:00:06.1]} 69... Ke5 {[%clk 0:00:07.8]} 70. h5 {[%clk 0:00:06.3]} 70...
Kf6 {[%clk 0:00:08.4]} 71. Bf1 {[%clk 0:00:05.8]} 71... Kg5 {[%clk 0:00:08.9]}
72. Be2 {[%clk 0:00:06.3]} 72... Kh6 {[%clk 0:00:09.7]} 73. Kc2 {[%clk
0:00:06.8]} 73... Bf3 {[%clk 0:00:09.4]} 74. Bxc4 {[%clk 0:00:06.8]} 74... Kxh5
{[%clk 0:00:08.4]} 75. Kd2 {[%clk 0:00:07.3]} 75... Kg4 {[%clk 0:00:08.5]} 76.
Ke3 {[%clk 0:00:07.8]} 76... Kg3 {[%clk 0:00:08.9]} 77. Kd2 {[%clk 0:00:08.1]}
77... Kg2 {[%clk 0:00:08.5]} 78. Kc3 {[%clk 0:00:08.4]} 78... a2 {[%clk
0:00:07.6]} 79. Kb2 {[%clk 0:00:08]} 79... Be4 {[%clk 0:00:07.7]} 80. Kxa2
{[%clk 0:00:07.9]} 80... Kf3 {[%clk 0:00:07.9]} 81. Kb2 {[%clk 0:00:08.1]} 81...
Ke3 {[%clk 0:00:08.1]} 82. Kc3 {[%clk 0:00:08.7]} 82... Bf3 {[%clk 0:00:07.4]}
83. Bf1 {[%clk 0:00:08.8]} 83... Be2 {[%clk 0:00:08]} 84. Bg2 {[%clk 0:00:08.4]}
84... Kf4 {[%clk 0:00:08.6]} 85. Kd2 {[%clk 0:00:08.2]} 85... Kg3 {[%clk
0:00:09.2]} 0-1